bitfinex-derivatives/quotes_SOLF0:USTF0_20260226
["timestamp","ask_amount","ask_price","bid_price","bid_amount"]
[1772132305879,13.96932466,85.419,85.361,16.88413925]
[1772132306075,3.15907813,85.4,85.361,16.88413925]
[1772132306272,13.96955092,85.398,85.35,3.15907813]
[1772132306468,13.96955092,85.441,85.361,16.88413925]
[1772132306783,17.12863458,85.42,85.361,16.88413925]
[1772132306975,10.5369,85.412,85.361,16.88413925]
[1772132307174,3.15907813,85.38,85.304,14.20868797]
[1772132307369,13.96992295,85.379,85.305,16.88413925]
[1772132307573,10.5417,85.373,85.327,10.5472]
[1772132307979,8.46760948,85.4,85.328,16.88413925]
[1772132307980,13.79937967,85.399,85.328,16.88413925]
[1772132308574,10.5405,85.383,85.34,10.5457]
[1772132308776,13.79969868,85.383,85.321,16.88413925]
[1772132309375,24.34009868,85.383,85.339,10.5457]
[1772132310475,24.34009868,85.383,85.321,16.88413925]
[1772132310681,24.34009868,85.383,85.331,16.88413925]
[1772132311382,13.79969868,85.383,85.331,16.88413925]
[1772132311986,10.5416,85.374,85.331,16.88413925]
[1772132313591,10.5416,85.374,85.333,16.88413925]
[1772132314895,10.5423,85.368,85.333,16.88413925]
[1772132315291,13.63285315,85.407,85.333,16.88413925]
[1772132316494,21.0748,85.408,85.334,17.26492598]
[1772132316495,24.18418008,85.385,85.334,17.26492598]
[1772132317890,13.57928726,85.384,85.334,17.26492598]
[1772132318293,13.57928726,85.384,85.324,27.81252598]
[1772132318492,13.57928726,85.384,85.325,17.26492598]
[1772132318895,10.5419,85.371,85.327,27.81222598]
[1772132319094,10.5419,85.371,85.328,17.26492598]
[1772132319600,24.12031723,85.378,85.331,16.40885082]
[1772132320197,10.54,85.387,85.339,16.40885082]
[1772132320393,13.47491658,85.403,85.339,16.40885082]
[1772132320902,13.47491658,85.389,85.321,16.40885082]
[1772132321294,13.47491658,85.389,85.332,16.40885082]
[1772132322001,10.5413,85.376,85.334,16.40885082]
[1772132322501,23.7267642,85.37,85.324,10.5476]
[1772132322698,23.7267642,85.37,85.325,16.40885082]
[1772132322893,13.1846642,85.37,85.325,16.40885082]
[1772132323599,10.5426,85.366,85.325,16.40885082]
[1772132324900,10.5426,85.366,85.327,16.40885082]
[1772132327303,13.1846642,85.37,85.327,16.40885082]
[1772132327304,10.5432,85.36,85.327,16.40885082]
[1772132328707,10.5425,85.367,85.327,16.40885082]
[1772132332909,13.1846642,85.37,85.327,16.40885082]
[1772132333413,13.1846642,85.37,85.33,3.16113716]
[1772132333614,10.5411,85.377,85.336,16.40885082]
[1772132334912,10.5411,85.377,85.337,10.546]
[1772132335310,10.5411,85.377,85.336,16.40885082]
[1772132335311,23.76955991,85.377,85.336,16.40885082]
[1772132335508,10.5414,85.375,85.336,16.40885082]
[1772132335714,13.51334266,85.374,85.336,16.40885082]
[1772132337111,13.51322004,85.387,85.336,16.40885082]
[1772132337318,13.51322004,85.387,85.341,16.40885082]
[1772132337704,10.5412,85.377,85.341,16.40885082]
[1772132337911,13.59837427,85.376,85.327,16.40885082]
[1772132339013,10.5424,85.367,85.327,26.95605082]
[1772132340608,10.5435,85.358,85.327,16.40885082]
[1772132340912,10.5435,85.358,85.311,16.40885082]
[1772132341118,13.78107413,85.346,85.298,16.40885082]
[1772132341319,16.94215739,85.34,85.298,16.40885082]
[1772132342221,3.16113716,85.35,85.298,16.40885082]
[1772132342415,13.78088938,85.349,85.298,16.40885082]
[1772132343110,13.78088938,85.349,85.306,16.40885082]
[1772132343318,16.94213474,85.36,85.311,16.40885082]
[1772132343911,10.5444,85.351,85.313,16.40885082]
[1772132344425,10.5435,85.358,85.313,16.40885082]
[1772132347420,13.25353298,85.349,85.297,16.40885082]
[1772132349023,10.546,85.338,85.297,16.40885082]
[1772132349222,13.25353298,85.349,85.301,16.40885082]
[1772132351015,10.5451,85.345,85.306,16.96327115]
[1772132351921,10.5458,85.339,85.306,16.96327115]
[1772132353127,10.5458,85.339,85.282,452.45089362]
[1772132353128,3.16113716,85.32,85.269,16.96327115]
[1772132353320,13.82438335,85.319,85.271,16.96327115]
[1772132353521,13.82438335,85.319,85.275,10.5536]
[1772132353718,13.82438335,85.319,85.276,16.96327115]
[1772132354222,10.5485,85.317,85.276,16.96327115]
[1772132355331,10.5494,85.311,85.276,16.96327115]
[1772132356228,10.5484,85.318,85.276,16.96327115]
[1772132356628,13.82438335,85.319,85.276,16.96327115]
[1772132356828,3.16113716,85.33,85.276,16.96327115]
[1772132357127,3.16113716,85.33,85.24,21.40494771]
[1772132357128,17.74921346,85.33,85.281,16.96327115]
[1772132358032,10.5474,85.326,85.281,16.96327115]
[1772132358430,17.74921346,85.33,85.281,16.96327115]
[1772132358628,3.16113716,85.32,85.281,16.96327115]
[1772132359131,17.86192983,85.32,85.281,16.96327115]
[1772132359333,3.16113716,85.31,85.267,16.96327115]
[1772132359627,14.69269175,85.361,85.29,3.16113716]
[1772132359834,10.5452,85.344,85.301,16.96327115]
[1772132360622,3.16113716,85.34,85.301,16.96327115]
[1772132360824,10.5458,85.339,85.301,16.96327115]
[1772132362532,14.69261581,85.344,85.301,16.96327115]
[1772132363931,14.69261581,85.344,85.254,21.40494771]
[1772132363932,14.64064959,85.329,85.288,16.96327115]
[1772132364126,14.64064959,85.329,85.271,16.96327115]
[1772132365136,14.64075651,85.327,85.284,10.5525]
[1772132365529,10.5466,85.333,85.29,16.96327115]
[1772132366132,17.8017803,85.34,85.29,16.96327115]
[1772132366335,3.16113716,85.33,85.29,16.96327115]
[1772132367035,17.8017803,85.34,85.29,16.96327115]
[1772132367635,10.5474,85.326,85.29,16.96327115]
[1772132370335,10.5466,85.333,85.29,16.96327115]
[1772132372942,10.5473,85.327,85.29,16.96327115]
[1772132375637,10.5465,85.334,85.292,17.60460303]
[1772132378851,10.5465,85.334,85.294,17.60460303]
[1772132379940,10.5465,85.334,85.297,16.35602648]
[1772132380745,10.5457,85.34,85.299,16.35602648]
[1772132381942,10.5457,85.34,85.302,16.35602648]
[1772132382447,24.91512826,85.34,85.302,16.35602648]
[1772132383051,10.5465,85.334,85.302,16.35602648]
[1772132384746,10.5457,85.34,85.302,16.35602648]
[1772132387458,10.5464,85.335,85.302,16.35602648]
[1772132387755,3.1643388,85.34,85.302,16.35602648]
[1772132387950,14.58595633,85.348,85.302,16.35602648]
[1772132388660,10.5463,85.336,85.302,16.35602648]
[1772132388952,14.58595633,85.348,85.302,16.35602648]
[1772132389859,10.5461,85.337,85.302,16.35602648]
[1772132390056,14.58595633,85.348,85.302,16.35602648]
[1772132391149,25.13065633,85.348,85.307,10.5497]
[1772132391459,25.13065633,85.348,85.308,16.35602648]
[1772132395665,10.5439,85.355,85.312,16.35602648]
[1772132395964,15.28193569,85.361,85.312,16.35602648]
[1772132396164,15.28193569,85.361,85.321,16.35602648]
[1772132396960,10.5432,85.36,85.321,16.35602648]
[1772132397758,15.28193569,85.361,85.321,16.35602648]
[1772132398062,15.22963864,85.353,85.312,26.90512648]
[1772132398259,15.22963864,85.353,85.312,16.35602648]
[1772132398570,3.1643388,85.35,85.312,16.35602648]
[1772132399067,15.22963864,85.353,85.312,16.35602648]
[1772132399867,10.5451,85.345,85.312,16.35602648]
[1772132400362,10.5464,85.335,85.298,26.90682648]
[1772132400566,15.42841887,85.349,85.299,16.35602648]
[1772132400762,15.42841887,85.349,85.301,16.35602648]
[1772132401063,15.42841887,85.349,85.3,3.1643388]
[1772132401064,10.5454,85.343,85.302,16.35602648]
[1772132401268,15.42841887,85.349,85.302,16.35602648]
[1772132402359,15.38064208,85.339,85.289,16.35602648]
[1772132402665,15.38064208,85.329,85.289,16.35602648]
[1772132403567,10.5483,85.32,85.289,16.35602648]
[1772132403871,18.32797567,85.31,85.261,16.35602648]
[1772132404065,15.16363687,85.325,85.28,10.5531]
[1772132404366,15.16363687,85.339,85.291,16.35602648]
[1772132404567,16.03909068,85.386,85.331,16.35602648]
[1772132404766,16.03909068,85.386,85.35,3.1643388]
[1772132405071,16.03909068,85.4,85.36,3.1643388]
[1772132405265,16.03909068,85.4,85.351,16.35602648]
[1772132405665,16.03909068,85.4,85.351,26.90032648]
[1772132405967,16.03909068,85.379,85.321,16.35602648]
[1772132406867,19.20342948,85.37,85.321,16.35602648]
[1772132407270,16.03909068,85.384,85.331,16.35602648]
[1772132407469,21.88550988,85.446,85.288,35.16]
[1772132407470,16.03909068,85.398,85.35,19.52036528]
[1772132407871,16.03909068,85.398,85.342,10.5454]
[1772132408075,35.16,85.426,85.342,10.5454]
[1772132408076,16.03909068,85.389,85.342,10.5454]
[1772132408766,16.03909068,85.389,85.334,16.35602648]
[1772132408971,16.03909068,85.387,85.334,16.35602648]
[1772132409271,16.03909068,85.387,85.341,16.35602648]
[1772132409471,16.03909068,85.387,85.343,16.35602648]
[1772132409667,16.03909068,85.387,85.288,35.16]
[1772132409668,3.1643388,85.4,85.351,15.92314326]
[1772132409868,17.54706004,85.401,85.351,15.92314326]
[1772132410664,3.1643388,85.4,85.351,15.92314326]
[1772132410868,3.1643388,85.4,85.352,10.5441]
[1772132411069,3.1643388,85.4,85.353,15.92314326]
[1772132411677,3.1643388,85.4,85.355,10.5438]
[1772132411975,3.1643388,85.4,85.356,15.92314326]
[1772132412773,17.54706004,85.401,85.356,15.92314326]
[1772132413772,17.54706004,85.401,85.309,21.099]
[1772132413773,17.54706004,85.401,85.36,19.08748206]
[1772132414475,17.54706004,85.401,85.285,28.70123026]
[1772132414476,20.71139884,85.38,85.33,19.08748206]
[1772132414670,20.71139884,85.37,85.33,15.92314326]
[1772132415269,10.5412,85.377,85.33,19.08748206]
[1772132415669,3.1643388,85.39,85.34,19.08748206]
[1772132415874,17.54706004,85.389,85.34,15.92314326]
[1772132416878,10.5412,85.377,85.34,15.92314326]
[1772132418376,10.5412,85.377,85.33,3.1643388]
[1772132418377,10.542,85.37,85.33,3.1643388]
[1772132418574,13.7063388,85.37,85.327,15.92314326]
[1772132419873,10.542,85.37,85.327,15.92314326]
[1772132420271,17.54706004,85.376,85.327,15.92314326]
[1772132420476,3.1643388,85.36,85.313,15.92314326]
[1772132421773,17.54706004,85.364,85.313,15.92314326]
[1772132421981,10.5441,85.353,85.313,15.92314326]
[1772132424473,3.1643388,85.36,85.315,15.92314326]
[1772132424678,21.0759,85.403,85.321,15.92314326]
[1772132424679,3.1643388,85.37,85.321,15.92314326]
[1772132425177,10.5422,85.369,85.324,15.92314326]
[1772132426478,10.5412,85.377,85.328,15.92314326]
[1772132426671,10.5412,85.377,85.331,15.92314326]
[1772132426871,17.54706004,85.379,85.331,15.92314326]
[1772132427976,10.542,85.37,85.331,15.92314326]
[1772132428176,17.54706004,85.369,85.318,15.92314326]
[1772132428578,17.54706004,85.357,85.305,15.92314326]
[1772132429183,17.54706004,85.357,85.305,30.22917053]
[1772132429477,17.54706004,85.357,85.306,15.92314326]
[1772132429682,28.09066004,85.357,85.318,10.5483]
[1772132430483,28.09066004,85.357,85.311,10.5492]
[1772132430684,28.09066004,85.357,85.312,15.92314326]
[1772132431782,10.5424,85.367,85.32,19.08748206]
[1772132431982,17.54706004,85.376,85.32,19.08748206]
[1772132432681,10.5425,85.366,85.32,19.08748206]
[1772132432875,17.54706004,85.369,85.32,19.08748206]
[1772132433280,17.54706004,85.369,85.32,19.08457355]
[1772132433580,10.544,85.354,85.32,15.92314326]
[1772132435480,17.54706004,85.369,85.32,19.08457355]
[1772132436182,17.49775035,85.382,85.33,20.60323064]
[1772132436790,20.65918064,85.41,85.351,17.44180035]
[1772132436986,20.65918064,85.41,85.36,3.16143029]
[1772132437387,20.65918064,85.41,85.361,10.543]
[1772132437686,20.65918064,85.41,85.36,3.16143029]
[1772132437891,20.65918064,85.41,85.36,20.60323064]
[1772132438294,17.49775035,85.41,85.36,20.60323064]
[1772132438886,17.49775035,85.41,85.367,10.5422]
[1772132439086,17.49775035,85.41,85.368,17.44180035]
[1772132440090,17.49775035,85.41,85.369,10.5421]
[1772132440392,17.49775035,85.41,85.37,3.16143029]
[1772132441092,3.16143029,85.42,85.37,19.53054934]
[1772132441295,16.37592171,85.418,85.372,10.5417]
[1772132441485,16.37592171,85.418,85.36,3.16143029]
[1772132441992,10.5372,85.409,85.364,10.5426]
[1772132442495,16.37592171,85.417,85.374,16.36911905]
[1772132443291,16.37592171,85.417,85.36,19.53054934]
[1772132443501,19.537352,85.43,85.38,19.53054934]
[1772132444992,16.37592171,85.449,85.391,16.36911905]
[1772132445298,16.37592171,85.429,85.38,3.16143029]
[1772132445791,10.5353,85.425,85.38,3.16143029]
[1772132446101,16.37592171,85.424,85.38,3.16143029]
[1772132446494,35.15,85.463,85.41,3.16143029]
[1772132446795,19.537352,85.46,85.41,3.16143029]
[1772132446994,16.37592171,85.453,85.401,16.36911905]
[1772132447389,16.37592171,85.439,85.39,3.16143029]
[1772132447597,16.37592171,85.429,85.371,16.36911905]
[1772132447996,16.37592171,85.442,85.39,3.16143029]
[1772132448299,16.37592171,85.442,85.374,16.36911905]
[1772132448300,16.37592171,85.439,85.38,19.53054934]
[1772132448701,21.0565,85.482,85.38,19.53054934]
[1772132448702,16.37592171,85.426,85.38,16.36911905]
[1772132450001,16.37592171,85.439,85.39,3.16143029]
[1772132450399,16.37592171,85.439,85.39,19.53054934]
[1772132450796,16.37592171,85.429,85.38,3.16143029]
[1772132451499,10.5354,85.424,85.38,3.16143029]
[1772132451700,16.37592171,85.443,85.39,19.53054934]
[1772132451895,3.16143029,85.44,85.39,19.53054934]
[1772132452092,16.37592171,85.48,85.42,19.53054934]
[1772132452297,16.37592171,85.48,85.44,3.16143029]
[1772132452994,163.6547,85.544,85.386,21.08]
[1772132452995,16.37592171,85.495,85.451,16.36911905]
[1772132453201,16.37592171,85.509,85.46,3.16143029]
[1772132454801,16.37592171,85.506,85.451,16.36911905]
[1772132455097,16.37592171,85.506,85.46,3.16143029]
[1772132455704,16.37592171,85.499,85.44,3.16143029]
[1772132456101,16.37592171,85.497,85.44,19.53054934]
[1772132456407,3.16143029,85.49,85.44,19.53054934]
[1772132456601,16.37592171,85.497,85.44,19.53054934]
[1772132457002,16.37592171,85.512,85.461,16.36911905]
[1772132457197,16.37592171,85.499,85.447,16.36911905]
[1772132457605,16.37592171,85.498,85.447,16.36911905]
[1772132458706,16.37592171,85.498,85.449,10.5321]
[1772132459308,16.37592171,85.498,85.447,16.36911905]
[1772132460309,10.5265,85.496,85.447,16.36911905]
[1772132460504,16.37592171,85.498,85.449,16.36911905]
[1772132461008,16.37592171,85.498,85.436,10.5338]
[1772132461208,16.37592171,85.498,85.437,16.36911905]
[1772132461408,26.90212171,85.498,85.437,16.36911905]
[1772132461607,16.37592171,85.498,85.437,16.36911905]
[1772132461811,16.37592171,85.498,85.447,16.36911905]
[1772132462412,10.5253,85.506,85.458,16.36911905]
[1772132463611,16.37592171,85.5,85.444,16.36911905]
[1772132463909,16.37592171,85.52,85.444,16.36911905]
[1772132464102,16.37592171,85.518,85.471,10.5295]
[1772132464907,16.37592171,85.518,85.471,26.89861905]
[1772132465112,10.5227,85.527,85.478,16.36911905]
[1772132465512,16.37592171,85.546,85.48,8.44316708]
[1772132465711,16.37592171,85.561,85.507,16.36911905]
[1772132466906,10.5191,85.556,85.507,16.36911905]
[1772132467110,16.37592171,85.561,85.481,16.36911905]
[1772132467614,16.37592171,85.561,85.508,10.5249]
[1772132468511,16.37592171,85.598,85.509,16.36911905]
[1772132468713,16.37592171,85.598,85.527,16.36911905]
[1772132469117,16.37592171,85.596,85.528,16.36911905]
[1772132469911,17.66933198,85.579,85.501,17.0788866]
[1772132470912,17.66933198,85.579,85.503,17.0788866]
[1772132471108,17.66933198,85.569,85.503,17.0788866]
[1772132472218,10.5213,85.538,85.487,17.0788866]
[1772132472413,17.66933198,85.537,85.487,17.0788866]
[1772132473417,17.66933198,85.556,85.487,17.0788866]
[1772132474109,10.5192,85.555,85.488,10.5274]
[1772132474309,10.5192,85.555,85.489,17.0788866]
[1772132474619,17.66933198,85.554,85.489,17.0788866]
[1772132474821,10.5199,85.55,85.489,17.0788866]
[1772132475127,17.66933198,85.549,85.489,17.0788866]
[1772132475817,17.66933198,85.534,85.469,17.0788866]
[1772132476416,17.66933198,85.534,85.481,17.0788866]
[1772132476616,17.66933198,85.559,85.481,17.0788866]
[1772132477019,10.5206,85.544,85.482,17.0788866]
[1772132477220,3.14901575,85.54,85.482,17.0788866]
[1772132477422,3.14901575,85.53,85.482,17.0788866]
[1772132477722,10.5212,85.539,85.482,27.6069866]
[1772132477919,10.5212,85.539,85.483,17.0788866]
[1772132478819,3.14901575,85.54,85.485,17.0788866]
[1772132479022,17.66933198,85.545,85.491,17.0788866]
[1772132479915,3.14901575,85.56,85.501,17.0788866]
[1772132480121,3.14901575,85.57,85.511,17.0788866]
[1772132480922,10.5176,85.568,85.511,17.0788866]
[1772132482017,17.66933198,85.559,85.493,17.0788866]
[1772132482418,10.52,85.548,85.495,10.5265]
[1772132482623,21.0269,85.603,85.454,21.0631]
[1772132482624,17.66933198,85.575,85.496,17.0788866]
[1772132483219,17.66933198,85.575,85.511,17.0788866]
[1772132483724,17.66933198,85.575,85.458,163.8165]
[1772132483725,17.66933198,85.591,85.519,17.0788866]
[1772132484127,10.5182,85.564,85.519,17.0788866]
[1772132486126,10.5164,85.578,85.525,17.0788866]
[1772132486831,10.5164,85.578,85.527,17.0788866]
[1772132487026,10.5154,85.586,85.527,17.0788866]
[1772132487926,8.431027,85.6,85.54,17.0788866]
[1772132487927,10.5144,85.594,85.54,17.0788866]
[1772132489028,10.5144,85.594,85.543,17.0788866]
[1772132489821,10.5153,85.587,85.543,17.0788866]
[1772132491429,17.66933198,85.586,85.528,17.0788866]
[1772132492921,17.66933198,85.572,85.501,17.0788866]
[1772132494333,10.5184,85.562,85.509,17.0788866]
[1772132494735,28.18773198,85.562,85.509,17.0788866]
[1772132495933,28.18773198,85.562,85.512,10.5243]
[1772132496134,16.16169307,85.553,85.489,16.51857143]
[1772132496838,16.16169307,85.535,85.461,16.51857143]
[1772132497535,10.522,85.532,85.475,16.51857143]
[1772132498732,10.5229,85.525,85.479,10.5284]
[1772132498937,10.5229,85.525,85.475,16.51857143]
[1772132499535,17.35981978,85.524,85.475,16.51857143]
[1772132500141,17.35981978,85.542,85.475,16.51857143]
[1772132500335,17.35981978,85.559,85.475,16.51857143]
[1772132500533,17.35981978,85.559,85.481,17.62434501]
[1772132501639,17.35981978,85.559,85.491,17.62434501]
[1772132502436,17.35981978,85.559,85.506,10.5252]
[1772132502638,17.35981978,85.559,85.491,17.62434501]
[1772132503834,17.35981978,85.559,85.498,17.62434501]
[1772132504035,17.35981978,85.557,85.498,17.62434501]
[1772132504838,17.35981978,85.542,85.461,17.62434501]
[1772132505439,10.5219,85.533,85.488,17.62434501]
[1772132505644,17.35981978,85.542,85.488,17.62434501]
[1772132506343,10.5218,85.534,85.489,17.62434501]
[1772132507440,10.5218,85.534,85.489,28.15164501]
[1772132507939,17.35981978,85.533,85.47,17.62434501]
[1772132508241,17.35981978,85.546,85.472,17.62434501]
[1772132508639,10.5218,85.534,85.485,17.62434501]
[1772132510043,17.35981978,85.544,85.476,10.5288]
[1772132510244,17.35981978,85.536,85.476,10.5288]
[1772132510845,17.35981978,85.536,85.471,17.62434501]
[1772132511247,27.88391978,85.515,85.471,17.62434501]
[1772132511642,17.35981978,85.557,85.474,17.62434501]
[1772132512241,10.5213,85.539,85.491,17.62434501]
[1772132512444,17.35981978,85.556,85.491,17.62434501]
[1772132512651,17.35981978,85.554,85.508,17.62434501]
[1772132512837,17.35981978,85.554,85.493,17.62434501]
[1772132513538,17.35981978,85.545,85.493,17.62434501]
[1772132514343,25.79205466,85.56,85.493,17.62434501]
[1772132514539,17.35981978,85.56,85.493,17.62434501]
[1772132515045,17.35981978,85.56,85.464,56.18484175]
[1772132515046,17.35981978,85.597,85.525,17.62434501]
[1772132516445,35.15,85.599,85.525,17.62434501]
[1772132516648,17.35981978,85.615,85.541,17.62434501]
[1772132517044,17.35981978,85.611,85.551,17.62434501]
[1772132518152,17.35981978,85.626,85.551,17.62434501]
[1772132518350,10.511,85.622,85.554,17.62434501]
[1772132518653,17.35981978,85.621,85.554,17.62434501]
[1772132519448,17.35981978,85.613,85.554,17.62434501]
[1772132520042,17.35981978,85.613,85.558,10.5188]
[1772132520243,17.35981978,85.613,85.559,17.62434501]
[1772132521045,10.5104,85.627,85.571,17.62434501]
[1772132521449,17.35981978,85.628,85.571,17.62434501]
[1772132522556,17.35981978,85.628,85.573,17.62434501]
[1772132523952,17.35981978,85.649,85.585,17.62434501]
[1772132524347,17.35981978,85.666,85.585,17.62434501]
[1772132524555,17.35981978,85.666,85.596,17.62434501]
[1772132524757,17.35981978,85.659,85.596,17.62434501]
[1772132525356,17.35981978,85.646,85.596,17.62434501]
[1772132525956,17.35981978,85.64,85.583,17.62434501]
[1772132526457,17.35981978,85.629,85.564,10.518]
[1772132526656,17.35981978,85.629,85.565,17.62434501]
[1772132527055,17.35981978,85.629,85.54,8.43223488]
[1772132527056,17.35981978,85.619,85.541,17.62434501]
[1772132527254,17.35981978,85.608,85.549,17.62434501]
[1772132528754,163.4493,85.651,85.534,17.62434501]
[1772132528755,17.35981978,85.599,85.534,17.62434501]
[1772132529259,17.35981978,85.634,85.577,17.62434501]
[1772132530161,17.33170653,85.665,85.579,17.16709278]
[1772132530359,17.33170653,85.665,85.581,17.16709278]
[1772132530555,10.5028,85.689,85.636,17.16709278]
[1772132530755,17.33170653,85.7,85.636,17.16709278]
[1772132531259,17.33170653,85.695,85.601,17.16709278]
[1772132531564,10.5043,85.676,85.624,10.5106]
[1772132531951,17.33170653,85.689,85.625,17.16709278]
[1772132532655,10.5029,85.688,85.635,10.5093]
[1772132533556,17.33170653,85.685,85.628,17.16709278]
[1772132534154,17.33170653,85.683,85.611,17.16709278]
[1772132534662,43.58223488,85.7,85.611,17.16709278]
[1772132534663,17.33170653,85.679,85.611,17.16709278]
[1772132535563,10.5052,85.67,85.611,27.67939278]
[1772132535862,17.33170653,85.669,85.611,17.16709278]
[1772132536061,17.33170653,85.669,85.591,17.16709278]
[1772132536252,27.83840653,85.657,85.603,10.5133]
[1772132536861,17.33170653,85.656,85.603,10.5133]
[1772132537067,8.43223488,85.67,85.595,10.5142]
[1772132537068,17.33170653,85.653,85.595,10.5142]
[1772132537262,17.33170653,85.703,85.596,17.16709278]
[1772132537567,17.33170653,85.667,85.609,27.67959278]
[1772132537761,17.33170653,85.667,85.609,17.16709278]
[1772132538161,17.33170653,85.667,85.611,10.5123]
[1772132538162,27.83720653,85.667,85.611,10.5123]
[1772132538354,17.33170653,85.666,85.609,17.16709278]
[1772132539163,17.33170653,85.665,85.609,17.16709278]
[1772132539969,27.83900653,85.652,85.591,17.16709278]
[1772132540162,17.33170653,85.651,85.591,17.16709278]
[1772132541067,17.33170653,85.629,85.571,17.16709278]
[1772132541267,10.5124,85.61,85.571,17.16709278]
[1772132542363,10.5114,85.618,85.571,17.16709278]
[1772132542564,17.33170653,85.629,85.571,17.16709278]
[1772132542963,10.5105,85.626,85.573,17.16709278]
[1772132544767,10.5094,85.635,85.573,17.16709278]
[1772132545171,17.33170653,85.645,85.573,17.16709278]
[1772132545763,10.5112,85.62,85.573,17.16709278]
[1772132545968,17.33170653,85.63,85.557,17.16709278]
[1772132545969,17.33170653,85.629,85.557,17.16709278]
[1772132546462,17.33170653,85.611,85.557,17.16709278]
[1772132546864,10.5134,85.602,85.557,17.16709278]
[1772132550072,10.5143,85.595,85.557,17.16709278]
[1772132550668,10.5155,85.586,85.541,17.16709278]
[1772132551668,10.5162,85.58,85.541,17.16709278]
[1772132552270,10.5162,85.58,85.531,10.522]
[1772132553371,10.5168,85.575,85.531,10.522]
[1772132554262,17.33170653,85.579,85.525,17.16709278]
[1772132554462,10.5176,85.568,85.525,17.16709278]
[1772132555269,17.33170653,85.603,85.525,17.16709278]
[1772132556066,17.71989869,85.629,85.541,17.25339668]
[1772132557178,17.71989869,85.609,85.541,17.25339668]
[1772132557767,17.71989869,85.604,85.541,17.25339668]
[1772132558774,8.42861555,85.61,85.53,10.5222]
[1772132558775,17.71989869,85.586,85.53,10.5222]
[1772132559973,10.516,85.581,85.53,10.5222]
[1772132563177,10.516,85.581,85.537,10.5214]
[1772132563369,10.516,85.581,85.524,17.25339668]
[1772132563978,17.71989869,85.586,85.536,10.5214]
[1772132564581,10.5164,85.578,85.529,10.5224]
[1772132565076,10.5164,85.578,85.53,17.5064498]
[1772132565979,28.23529869,85.586,85.533,10.5218]
[1772132566182,10.5154,85.586,85.534,17.5064498]
[1772132566382,17.59569004,85.601,85.534,17.5064498]
[1772132567475,17.59569004,85.601,85.537,17.5064498]
[1772132568284,10.5145,85.593,85.55,10.5197]
[1772132568479,10.5145,85.593,85.537,17.5064498]
[1772132568878,10.5153,85.587,85.543,10.5207]
[1772132569074,17.59569004,85.601,85.537,17.5064498]
[1772132569685,10.5161,85.581,85.539,17.5064498]
[1772132570679,17.59569004,85.601,85.539,17.5064498]
[1772132570883,14.43193035,85.706,85.579,163.5852]
[1772132571080,14.43947774,85.754,85.63,8.42861555]
[1772132571285,8.42861555,85.76,85.65,8.42861555]
[1772132571478,2.0314347,85.739,85.65,8.42861555]
[1772132571677,14.43947774,85.819,85.67,8.42861555]
[1772132571984,1.429e-05,85.746,85.67,8.42861555]
[1772132572280,1.429e-05,85.746,85.65,18.93601555]
[1772132572480,1.429e-05,85.746,85.649,5.25822167]
[1772132572685,1.429e-05,85.746,85.65,163.4497]
[1772132572878,1.429e-05,85.746,85.688,10.5028]
[1772132573079,1.429e-05,85.746,85.7,8.42861555]
[1772132573278,1.429e-05,85.746,85.659,163.433]
[1772132573481,1.429e-05,85.746,85.636,163.4759]
[1772132573482,52.39479005,85.746,85.647,14.18322843]
[1772132573681,52.39479005,85.746,85.67,8.42861555]
[1772132573886,34.89909005,85.746,85.685,10.5031]
[1772132574081,34.89909005,85.746,85.649,14.18322843]
[1772132574082,17.22649005,85.746,85.649,14.18322843]
[1772132574380,8.42861555,85.78,85.659,5.25300433]
[1772132574589,8.42861555,85.74,85.64,8.42861555]
[1772132575585,8.42861555,85.75,85.661,10.5061]
[1772132576384,25.00169292,85.749,85.661,10.5061]
[1772132576780,25.00169292,85.749,85.641,10.5085]
[1772132577489,25.00169292,85.749,85.659,10.5063]
[1772132579188,25.00169292,85.749,85.66,8.42861555]
[1772132579591,25.00169292,85.749,85.675,10.5043]
[1772132579787,25.00169292,85.749,85.68,8.42861555]
[1772132580787,8.42861555,85.79,85.681,7.28635371]
[1772132580990,8.42861555,85.77,85.681,7.28635371]
[1772132581497,8.42861555,85.79,85.687,12.27071171]
[1772132582796,17.59569004,85.775,85.7,22.9548954]
[1772132583790,17.59569004,85.775,85.708,12.61204439]
[1772132584995,17.59569004,85.775,85.718,10.4991]
[1772132585195,17.59569004,85.775,85.7,8.42861555]
[1772132585595,17.59569004,85.773,85.693,10.5022]
[1772132586097,17.59569004,85.769,85.694,12.83360537]
[1772132586396,17.59569004,85.769,85.701,12.83360537]
[1772132586785,17.59569004,85.789,85.727,13.00342519]
[1772132587994,17.59569004,85.789,85.728,10.4979]
[1772132588192,17.59569004,85.789,85.727,13.00342519]
[1772132588597,17.59569004,85.785,85.727,13.00342519]
[1772132589099,17.59569004,85.785,85.737,10.4968]
[1772132589301,17.59569004,85.802,85.727,13.00342519]